Cogmind - Beta 13 @@@ ROGUE MODE // 2024.06.07 @ 18:20:19 Player: admiral_len Result: Self-destructed Performance ------------- Evolutions (1) 500 Regions Visited (2) 400 Robots Destroyed (28) 140 Value Destroyed (677) 677 Prototype IDs (0) 0 Alien Tech Used (0) 0 Bonus (0) 0 TOTAL SCORE: 1717 Bonus ------- None Cogmind --------- Core Integrity 163/400 Matter 124/300 Energy 100/100 System Corruption 0% Temperature Cool (0) Movement Core (200) Ox3 Location -9/Materials Parts ------- > --- POWER (1) -------- (None) > --- PROPULSION (2) --- (None) > --- UTILITY (4) ------ Medium Storage Unit > --- WEAPON (2) ------- (None) > --- INVENTORY (10) --- Improved Ion Engine Light Nuclear Core Peak State ------------ > --- POWER ------------ Light Ion Engine > --- PROPULSION ------- Light Treads Light Treads > --- UTILITY ---------- Small Storage Unit Medium Storage Unit > --- WEAPON ----------- EM Pulse Gun Assault Rifle > --- INVENTORY -------- Light Ion Engine Aluminum Leg Aluminum Leg Light Cannon Light Cannon [Rating: 7] Favorites ----------- Power Improved Ion Engine Engine Improved Ion Engine Propulsion Light Treads Treads Light Treads Wheel Compact Wheel Flight Unit Flight Unit Utility Medium Storage Unit Storage Medium Storage Unit Weapon Light Cannon Energy Gun EM Pulse Gun Ballistic Gun Assault Rifle Ballistic Cannon Light Cannon Launcher Grenade Launcher Build | -11 -10 -9 ------- Run | Yrd Mat Mat Slots Evolved 2 | . . 2 Power . | . . . Propulsion . | . . . Utility 2 | . . 2 Weapon . | . . . Parts Attached 26 | 6 11 9 Power 3 | 1 1 1 Engine 3 | 1 1 1 Core . | . . . Reactor . | . . . Propulsion 13 | 2 4 7 Treads 8 | 2 4 2 Leg . | . . . Wheel 3 | . . 3 Hover . | . . . Flight 2 | . . 2 Utility 2 | 1 1 . Device . | . . . Storage 2 | 1 1 . Processor . | . . . Hackware . | . . . Protection . | . . . Artifact . | . . . Weapon 8 | 2 5 1 Energy Gun 1 | 1 . . Energy Cannon . | . . . Ballistic Gun 3 | 1 2 . Ballistic Cannon 3 | . 3 . Launcher 1 | . . 1 Special Weapon . | . . . Impact Weapon . | . . . Slashing Weapon . | . . . Piercing Weapon . | . . . Special Melee Weapon . | . . . Unidentified Prototypes . | . . . Parts Lost 9 | . . 9 Power 1 | . . 1 Propulsion 5 | . . 5 Utility . | . . . Weapon 3 | . . 3 Highest Loss Streak 4 | . . 4 To Critical Strikes . | . . . Average Slot Usage (%) 72 | . 83 58 Engine 12 | . 13 10 Treads 20 | . 27 12 Wheel 2 | . . 5 Storage 12 | . 14 11 Energy Gun 1 | . 2 . Ballistic Gun 8 | . 14 . Ballistic Cannon 12 | . 9 16 Naked Turns . | . . . Heaviest Build 23 | 12 21 23 Greatest Support 40 | 40 40 40 Greatest Overweight (x) 7 | . 5 7 Average Overweight (x) . | . . . Largest Inventory Capacity 10 | 8 10 10 Average Capacity 9 | 7 9 10 Most Carried 7 | 5 7 5 Average Carried 3 | 2 4 3 Final Capacity 10 | 8 10 10 Final Carried 3 | 3 3 2 Class Distribution -------------------- 100% | Mutant Dominant Class ---------------- Mutant | -10/Materials Mutant | -9/Materials Resources | -11 -10 -9 ----------- Run | Yrd Mat Mat Matter Collected 947 | 237 303 407 Remotely . | . . . Salvage Created 793 | . 398 395 Parts 37 | . 19 18 Haulers Intercepted . | . . . Recyclers Shooed 2 | . 1 1 Parts Field Recycled . | . . . Retrieved Matter . | . . . Parts Self-Destructed . | . . . Prevented . | . . . Kills | -11 -10 -9 ------- Run | Yrd Mat Mat Combat Hostiles Destroyed 19 | . 6 13 Guns 5 | . 5 . Cannons 8 | . 1 7 AOE 6 | . . 6 Classes Destroyed 8 | . 5 3 Worker 2 | . 1 1 Builder 1 | . 1 . Recycler 3 | . 1 2 Mechanic 2 | . . 2 Watcher 1 | . 1 . Swarmer 5 | . . 5 Grunt 12 | . 6 6 Sentry 2 | . . 2 Best Kill Streak 5 | . 4 5 Combat Bots Only 5 | . 2 5 Max Kills in Single Turn 2 | . 1 2 Gunslinging . | . . . Exploded 2 | . . 2 Melee . | . . . Uniques/NPCs Destroyed . | . . . Combat | -11 -10 -9 -------- Run | Yrd Mat Mat Hostile Shots Fired 152 | . 40 112 Missed 45 | . 11 34 Damage Taken 1367 | . 400 967 Core 277 | . 40 237 Absorbed by Shields . | . . . Core Remaining (%) 92 | 100 84 . Volleys Fired 105 | . 35 70 Largest 2 | . 2 2 Hottest 70 | . 70 70 Shots Fired 168 | . 67 101 Gun 54 | . 54 . Cannon 99 | . 13 86 Launcher 15 | . . 15 Special . | . . . Kinetic 153 | . 67 86 Thermal . | . . . Explosive 15 | . . 15 Electromagnetic . | . . . Robot Hit Streak 11 | . 6 11 Robot Miss Streak 4 | . 3 4 Penetration Max . | . . . Secondary Targets . | . . . Shots Hit Robots 105 | . 45 60 Core Hits 46 | . 19 27 Critical Kills . | . . . Critical Parts Destroyed . | . . . Critical Strikes 2 | . . 2 Blast 2 | . . 2 Melee Attacks . | . . . Impact . | . . . Slashing . | . . . Piercing . | . . . Sneak Attacks . | . . . Combat Hostiles . | . . . Follow-up Attacks . | . . . Damage Inflicted 2068 | . 674 1394 Guns 496 | . 496 . Cannons 1066 | . 178 888 Explosions 506 | . . 506 Melee . | . . . Ramming . | . . . Kinetic 1562 | . 674 888 Thermal . | . . . Explosive 506 | . . 506 Electromagnetic . | . . . Impact . | . . . Slashing . | . . . Piercing . | . . . Highest Corruption . | . . . Average Corruption . | . . . Corruption Purged . | . . . Corruption Blocked . | . . . Overload Shots . | . . . Overflow Damage 23 | . . 23 Projectiles . | . . . Explosions 23 | . . 23 Melee . | . . . Knockbacks 7 | . 2 5 Impact . | . . . Kinetic 7 | . 2 5 Secondary . | . . . Self-Inflicted Damage 13 | . . 13 Shots 1 | . . 1 Rammed . | . . . Targets Rammed . | . . . Kicked . | . . . Crushed . | . . . Highest Temperature 105 | . 32 105 Average Temperature 21 | . 9 25 Received Heat Transfer 705 | . 249 456 Siege Activations . | . . . Robots Corrupted . | . . . Combat Hostiles . | . . . Parts Fried 1 | . 1 . Impact Corruptions . | . . . Robots Melted . | . . . Combat Hostiles . | . . . Parts Melted . | . . . Heat Transferred . | . . . Parts Sabotaged . | . . . Parts Stolen . | . . . Parts Stripped . | . . . Power Chain Reactions . | . . . Alert | -11 -10 -9 ------- Run | Yrd Mat Mat Peak Influence 319 | . 140 319 Initial 2 | . . 2 Average 70 | . 64 85 Maximum Alert Level 1 | . . 1 Low Security (%) 95 | 100 100 90 Level 1 4 | . . 9 Level 2 . | . . . Level 3 . | . . . Level 4 . | . . . Level 5 . | . . . High Security . | . . . Max Security . | . . . Squads Dispatched 2 | . . 2 Investigation 1 | . . 1 Extermination . | . . . Reinforcement 1 | . . 1 Assault . | . . . Garrison . | . . . Intercept . | . . . Searches Triggered . | . . . Construction Impeded 1 | . . 1 Haulers Reinforced . | . . . Active Scanning Responses . | . . . Cargo Convoy Interrupts . | . . . Stealth | -11 -10 -9 --------- Run | Yrd Mat Mat Distress Signals 1 | . 1 . Communications Jammed . | . . . Distress Signals . | . . . Times Spotted 38 | . 13 25 Peak Tracking Total 6 | . 3 6 Tactical Retreats 1 | . . 1 Traps | -11 -10 -9 ------- Run | Yrd Mat Mat Traps Triggered 5 | . 4 1 Indirectly . | . . . Trap Hack Attempts . | . . . Triggered . | . . . Disarmed . | . . . Reprogrammed . | . . . Reused . | . . . Traps Extracted . | . . . Installed . | . . . Triggered 1 | . 1 . Machines | -11 -10 -9 ---------- Run | Yrd Mat Mat Machines Disabled 1 | . . 1 Max in Single Turn 1 | . . 1 Machines Repaired . | . . . Machines Dismantled . | . . . Machines Sabotaged . | . . . Overloaded Fab Kills . | . . . Hacking | -11 -10 -9 --------- Run | Yrd Mat Mat Machines Accessed 1 | . 1 . Terminals 1 | . 1 . Fabricators . | . . . Repair Stations . | . . . Recycling Units . | . . . Scanalyzers . | . . . Garrison Access . | . . . Total Hacks 2 | . 2 . Successful 1 | . 1 . Failed 1 | . 1 . Catastrophic . | . . . Database Lockouts . | . . . Manual . | . . . Terminals 2 | . 2 . Fabricators . | . . . Repair Stations . | . . . Recycling Units . | . . . Scanalyzers . | . . . Garrison Access . | . . . Terminal Hacks 1 | . 1 . Locate Traps 1 | . 1 . Fabricator Hacks . | . . . Repair Station Hacks . | . . . Recycling Unit Hacks . | . . . Scanalyzer . | . . . Garrison Access Hacks . | . . . Unauthorized Hacks . | . . . Terminals . | . . . Fabricators . | . . . Repair Stations . | . . . Recycling Units . | . . . Scanalyzers . | . . . Garrison Access . | . . . Data Cores Recovered . | . . . Used . | . . . Hacking Detections 1 | . 1 . Full Trace Events . | . . . Feedback Events . | . . . Feedback Blocked . | . . . Robot Schematics Acquired . | . . . Robots Built . | . . . Authchips . | . . . Time . | . . . Total Robot Build Rating . | . . . Part Schematics Acquired . | . . . Parts Built . | . . . Authchips . | . . . Time . | . . . Total Part Build Rating . | . . . Parts Repaired . | . . . Time . | . . . Parts Recycled . | . . . Recycled Matter . | . . . Retrieved Matter . | . . . Retrieved Components . | . . . Parts Scanalyzed . | . . . Part Schematics Acquired . | . . . Parts Damaged . | . . . Bothacking | -11 -10 -9 ------------ Run | Yrd Mat Mat Used RIF Installer . | . . . Robots Hacked . | . . . Non-combat . | . . . Combat . | . . . Robot Hacks Applied . | . . . Relay Couplers Released . | . . . Fabnet Peak Effective % . | . . . Robots Rewired . | . . . Allies Hacked . | . . . Hacks Repelled . | . . . Allies | -11 -10 -9 -------- Run | Yrd Mat Mat Total Allies . | . . . Largest Group . | . . . Highest-Rated Group . | . . . Highest-Rated Ally . | . . . Total Orders . | . . . Ally Attacks . | . . . Total Damage . | . . . Kills . | . . . Allies Corrupted . | . . . Allies Melted . | . . . Intel | -11 -10 -9 ------- Run | Yrd Mat Mat Robot Analysis Total . | . . . Derelict Logs Recovered . | . . . Drone Launches . | . . . Drone Recoveries . | . . . Exploration | -11 -10 -9 ------------- Run | Yrd Mat Mat Turns Passed 1668 | 72 888 708 Spaces Moved 841 | 43 464 334 Core 18 | 10 4 4 Treads 697 | 33 460 204 Legs . | . . . Wheels 126 | . . 126 Hover . | . . . Flight . | . . . Fastest Speed 50 | 50 160 80 Average Speed 153 | 134 160 145 Slowest Speed 400 | 160 300 400 Overloaded Moves . | . . . Propulsion Burnouts . | . . . Robots Hopped . | . . . Cave-ins Triggered . | . . . Exploration Rate (%) 38 | 4 79 33 Regions Visited 2 Branch Regions . Pre-discovered Areas . | . . . Known Exits Taken . | . . . Unknown Exits Taken 2 | 1 1 . Scrap Searched . | . . . Spaces Dug . | . . . Terrain Destroyed 78 | . . 78 Melee . | . . . Projectile . | . . . AOE 78 | . . 78 Terrain Rammed . | . . . Walls Destroyed . | . . . Machines Disabled . | . . . Actions | -11 -10 -9 --------- Run | Yrd Mat Mat Total 1056 | 57 542 457 Wait 41 | . 10 31 Move 839 | 42 463 334 Hop . | . . . Pick Up 31 | 9 14 8 Fast Attach . | . . . Attach 24 | 6 9 9 Detach 1 | . 1 . Swap 2 | . 2 . Drop 13 | . 8 5 Fire 105 | . 35 70 Melee . | . . . Ram . | . . . Kick . | . . . Crush . | . . . Escape Stasis . | . . . Rewire . | . . . Trap . | . . . Miscellaneous . | . . . Route ------- -11/Scrapyard -10/Materials (discovered 5 exits: *Mat x3 / [*Min x2]) -9/Materials (discovered 1 exit: [*Mat]) History --------- Turn | Location | Event 4 | -11/Scrapyard | Discovered new exit (range 15) 73 | -11/Scrapyard | Entered Materials 318 | -10/Materials | Build established: Mutant 383 | -10/Materials | Discovered new exit (range 13) 435 | -10/Materials | Discovered new exit (range 8) 604 | -10/Materials | Discovered new exit (range 8) 713 | -10/Materials | Discovered new exit (range 9) 906 | -10/Materials | Discovered new exit (range 14) 961 | -10/Materials | Entered another Materials area 961 | -9/Materials | Evolved 2 slots: Utility x2 1561 | -9/Materials | Core integrity fell below 50% 1585 | -9/Materials | Discovered new exit (range 14) 1669 | -9/Materials | Self-destructed Last Messages --------------- U-05 Engineer lays Concrete. Destroyed Flight Unit. U-05 Engineer lays Concrete. S-10 Pest destroyed. U-05 Engineer builds a Wall. U-05 Engineer lays Concrete. Acquired 18 matter. U-05 Engineer lays Concrete. The unstable cave ceiling collapses. U-05 Engineer lays Concrete. U-05 Engineer builds a Wall. U-05 Engineer lays Concrete. U-05 Engineer builds a Wall. U-05 Engineer lays Concrete. Acquired 10 matter. Imp. Ion Engine destroyed. Com. Wheel destroyed. Grenade Launcher destroyed. Critical hit (Burn: +37). Wheel destroyed. Map ----- +----------------------------------------------------+ | ?????????????????????????????????????????????????? | | ?????????????????????????????????????????????????? | | ?????????????????????????????????????????????????? | | ?????????????????????????????????????????????????? | | ?????????????????????????????????????????????????? | | ?????????????????????????????????????????????????? | | ?????????????????????????????????????????????????? | | ?????????????????????????????????????????????????? | | ?????????????????????????????????????????????????? | | ?????????????????????????????????????????????????? | | ?????????????????????????????????????????????????? | | ?????????????????????????????????????????????????? | | ?????????????????????????????????????????????????? | | ?????????????????????????????????????????????????? | | ?????????????????????????????????????????????????? | | ?????????????????????????????????????????????????? | | ?????????????????????????????????????????????????? | | ?????????????????????###+###?????????????????????? | | ?????????????????##### #?????????????????????? | | ?????????????????? ######+###????????????? | | ??????????????????? ###??????????? | | ???????????????????? w ??????????? | | ?????????????????????# #????????????? | | ??????????????????????# #????????????? | | ??????????????????????# g ##???????????? | | ??????????????????????# @ a ????????? | | ??????????????????????# ###???????????????? | | ????????????????#####?# #?????????????????? | | ???????????????? """" # ##+###??#??????????????? | | ???????????????# """" # #?????? #??????????????? | | ???????????????# """" + #?????? #??? ??????????? | | ???????????????# # #????? ### ??????????? | | ???????????????# # #????? #?????????? | | ?###???????????# ?# #????! #?????????? | | ? ?????############?# #???? #?????????? | | ? ?????# #??????#w #??? #?????????? | | ? ?????# """ #??????# #???! ??????????? | | ?# #?????# """ #??????# #?? ????????????? | | ?# #?????# """ #??????# #?? !#??????????????? | | ?# #?????# """ ######?# #? #??????????????? | | ?# #?????# """ ## ### ## #??????????????? | | ## ####### ## ### + #??????????????? | | ## ## ####+### #########??????????????? | | ### ##??????????????????????? | | % #####???????????????????????? | | ! ##??????????????????????????? | | #### +########## #??????????????????????????? | | # #??????## ##??????????????????????????? | | #= #??????## ####?????????????????????????? | | # ######### # #?????????????????????????? | +----------------------------------------------------+ Best States ------------- Heat Dissipation 28 Energy Generation 12 Energy Capacity 265 Matter Stores 300 Matter Capacity 300 Sight Range 16 Terrain Scan Density 10 Evasion (%) 44 Recoil Reduction 2 Item Schematics ----------------- None Robot Schematics ------------------ None Fabricated ------------ Nothing Alien Tech Used ----------------- None Achievements -------------- None Challenges ------------ None Game ------ Seed CommReflectiveExtractor Manual? 0 Play Time 00:14:32 Cumulative 7.6 hours Start 2024.06.07 @ 18:06:51 End 2024.06.07 @ 18:20:19 Sessions 1 Manual Loads 0 Difficulty Rogue Special Mode None Game No. 20 Rogue 20 Adventurer 0 Explorer 0 Win Type - Total 0 Types 0/0/0/0/0/0/0/0/0 Lore% 3 Gallery% 13 Achievement% 10 Wizard Run 0 Options --------- Layout 0 ASCII 0 Keyboard 0 Movement Mouse Keybinds 0 Fullscreen 1 Font 18/SmallcapsGlow Map View 38x25 Zoom Use 99% Tactical HUD 0 Map Filters NONE Filters NONE Steam 1 RUN: 05e6ba2e-7047-4717-b618-dca2d437e11c